[Event "Titled Tuesday Blitz February 21 Late 2023"]
[White "Bhavikatti, Neil"]
[Black "Mikhalsky, Vladimir"]
[WhiteFideId "30935024"]
[BlackFideId "14144352"]
[WhiteElo "2051"]
[BlackElo "2219"]
[Result "1-0"]
[Round "09"]
[TimeControl "180+2"]
[Date "2023.02.21"]
[WhiteClock "0:00:13"]
[BlackClock "0:00:01"]

1. d4 {[%clk 0:03:00]}  Nf6 {[%clk 0:02:51]} 2. c4 {[%clk 0:03:01]}  g6 {[%clk 0:02:51]} 3. Nc3 {[%clk 0:03:01]}  Bg7 {[%clk 0:02:51]} 4. e4 {[%clk 0:03:00]}  d6 {[%clk 0:02:51]} 5. Nf3 {[%clk 0:02:57]}  O-O {[%clk 0:02:52]} 6. Be2 {[%clk 0:02:56]}  e5 {[%clk 0:02:52]} 7. dxe5 {[%clk 0:02:55]}  dxe5 {[%clk 0:02:51]} 8. Qxd8 {[%clk 0:02:56]}  Rxd8 {[%clk 0:02:51]} 9. Nd5 {[%clk 0:02:57]}  Nxd5 {[%clk 0:02:38]} 10. cxd5 {[%clk 0:02:58]}  c6 {[%clk 0:02:36]} 11. Bc4 {[%clk 0:02:58]}  b5 {[%clk 0:02:26]} 12. Bb3 {[%clk 0:02:57]}  Bb7 {[%clk 0:02:26]} 13. Bg5 {[%clk 0:02:48]}  Rd7 {[%clk 0:02:18]} 14. O-O-O {[%clk 0:02:19]}  cxd5 {[%clk 0:02:08]} 15. exd5 {[%clk 0:02:07]}  e4 {[%clk 0:02:03]} 16. Nd2 {[%clk 0:01:25]}  h6 {[%clk 0:01:33]} 17. Be3 {[%clk 0:01:22]}  f5 {[%clk 0:01:18]} 18. Nb1 {[%clk 0:00:53]}  Na6 {[%clk 0:01:05]} 19. d6+ {[%clk 0:00:45]}  Kh7 {[%clk 0:00:57]} 20. Be6 {[%clk 0:00:45]}  Rdd8 {[%clk 0:00:56]} 21. Nc3 {[%clk 0:00:43]}  b4 {[%clk 0:00:46]} 22. Nb5 {[%clk 0:00:39]}  Bc8 {[%clk 0:00:41]} 23. d7 {[%clk 0:00:31]}  Bb7 {[%clk 0:00:40]} 24. Nd6 {[%clk 0:00:27]}  Bc6 {[%clk 0:00:33]} 25. Nf7 {[%clk 0:00:27]}  b3 {[%clk 0:00:28]} 26. a3 {[%clk 0:00:20]}  Nc7 {[%clk 0:00:20]} 27. Nxd8 {[%clk 0:00:20]}  Rxd8 {[%clk 0:00:20]} 28. Bxb3 {[%clk 0:00:20]}  g5 {[%clk 0:00:13]} 29. Bxa7 {[%clk 0:00:20]}  Nb5 {[%clk 0:00:13]} 30. Bb6 {[%clk 0:00:19]}  Rxd7 {[%clk 0:00:13]} 31. Rxd7 {[%clk 0:00:19]}  Bxd7 {[%clk 0:00:14]} 32. Rd1 {[%clk 0:00:17]}  Bc8 {[%clk 0:00:14]} 33. Bc4 {[%clk 0:00:16]}  Ba6 {[%clk 0:00:10]} 34. a4 {[%clk 0:00:14]}  Nd4 {[%clk 0:00:01]} 35. Bxa6 {[%clk 0:00:13]} 1-0


[Site "https://www.chess.com"]

[Event "Titled Tuesday Blitz February 21 Late 2023"]
[White "Jorajuria Mendoza, Algol"]
[Black "Bon, Michael"]
[WhiteFideId "5128897"]
[BlackFideId "620696"]
[WhiteElo "2069"]
[BlackElo "2394"]
[Result "1-0"]
[Round "09"]
[TimeControl "180+2"]
[Date "2023.02.21"]
[WhiteClock "0:00:06"]
[BlackClock "0:00:01"]

1. e4 {[%clk 0:03:00]}  c5 {[%clk 0:02:56]} 2. Nf3 {[%clk 0:02:59]}  d6 {[%clk 0:02:56]} 3. d4 {[%clk 0:02:59]}  cxd4 {[%clk 0:02:57]} 4. Nxd4 {[%clk 0:03:00]}  Nf6 {[%clk 0:02:57]} 5. Nc3 {[%clk 0:03:00]}  Nc6 {[%clk 0:02:58]} 6. Bg5 {[%clk 0:03:01]}  e6 {[%clk 0:02:58]} 7. Qd2 {[%clk 0:02:59]}  a6 {[%clk 0:02:58]} 8. O-O-O {[%clk 0:02:58]}  Bd7 {[%clk 0:02:58]} 9. f4 {[%clk 0:02:56]}  h6 {[%clk 0:02:58]} 10. Bh4 {[%clk 0:02:33]}  Be7 {[%clk 0:02:57]} 11. Rg1 {[%clk 0:02:07]}  b5 {[%clk 0:02:37]} 12. e5 {[%clk 0:01:50]}  dxe5 {[%clk 0:02:32]} 13. Nxc6 {[%clk 0:01:45]}  Bxc6 {[%clk 0:02:31]} 14. Qe1 {[%clk 0:01:41]}  Nd7 {[%clk 0:01:20]} 15. Bxe7 {[%clk 0:01:37]}  Qxe7 {[%clk 0:01:21]} 16. fxe5 {[%clk 0:01:34]}  Qg5+ {[%clk 0:01:18]} 17. Kb1 {[%clk 0:01:29]}  Qxe5 {[%clk 0:01:18]} 18. Qf2 {[%clk 0:01:03]}  b4 {[%clk 0:01:13]} 19. Ne2 {[%clk 0:00:57]}  O-O {[%clk 0:01:10]} 20. g4 {[%clk 0:00:54]}  Nf6 {[%clk 0:01:02]} 21. Nc1 {[%clk 0:00:30]}  Ne4 {[%clk 0:00:47]} 22. Qb6 {[%clk 0:00:20]}  Bd5 {[%clk 0:00:39]} 23. Nd3 {[%clk 0:00:18]}  Qxh2 {[%clk 0:00:36]} 24. Bg2 {[%clk 0:00:18]}  Rab8 {[%clk 0:00:30]} 25. Qd4 {[%clk 0:00:17]}  Ng5 {[%clk 0:00:14]} 26. Bxd5 {[%clk 0:00:16]}  Rfd8 {[%clk 0:00:11]} 27. Nxb4 {[%clk 0:00:11]}  Qd6 {[%clk 0:00:08]} 28. Nc6 {[%clk 0:00:11]}  exd5 {[%clk 0:00:01]} 29. Nxd8 {[%clk 0:00:10]}  Rxd8 {[%clk 0:00:01]} 30. Rd3 {[%clk 0:00:09]}  Ne4 {[%clk 0:00:01]} 31. Rgd1 {[%clk 0:00:08]}  Nf6 {[%clk 0:00:02]} 32. c3 {[%clk 0:00:07]}  Qe6 {[%clk 0:00:02]} 33. Rg3 {[%clk 0:00:06]}  Ne4 {[%clk 0:00:01]} 34. Re3 {[%clk 0:00:06]}  Qxg4 {[%clk 0:00:01]} 35. Rxe4 {[%clk 0:00:06]} 1-0


[Site "https://www.chess.com"]

[Event "Titled Tuesday Blitz February 21 Late 2023"]
[White "Kleiman, Jake"]
[Black "Zhang, Alan"]
[WhiteFideId "2020041"]
[BlackFideId "30936870"]
[WhiteElo "2399"]
[BlackElo "2001"]
[Result "1-0"]
[Round "09"]
[TimeControl "180+2"]
[Date "2023.02.21"]
[WhiteClock "0:02:26"]
[BlackClock "0:01:10"]

1. e4 {[%clk 0:02:59]}  e5 {[%clk 0:03:00]} 2. Nf3 {[%clk 0:02:59]}  Nc6 {[%clk 0:03:00]} 3. Bb5 {[%clk 0:02:59]}  a6 {[%clk 0:03:00]} 4. Ba4 {[%clk 0:03:00]}  Nf6 {[%clk 0:03:00]} 5. O-O {[%clk 0:02:59]}  Be7 {[%clk 0:03:00]} 6. Bxc6 {[%clk 0:02:59]}  dxc6 {[%clk 0:03:01]} 7. d3 {[%clk 0:03:00]}  Nd7 {[%clk 0:02:59]} 8. b3 {[%clk 0:03:01]}  f6 {[%clk 0:02:59]} 9. Bb2 {[%clk 0:03:02]}  c5 {[%clk 0:02:57]} 10. Nbd2 {[%clk 0:03:02]}  b6 {[%clk 0:02:57]} 11. Nc4 {[%clk 0:03:02]}  Bb7 {[%clk 0:02:58]} 12. Nh4 {[%clk 0:02:59]}  O-O {[%clk 0:02:53]} 13. Nf5 {[%clk 0:02:56]}  g6 {[%clk 0:02:50]} 14. Nxe7+ {[%clk 0:02:55]}  Qxe7 {[%clk 0:02:50]} 15. f4 {[%clk 0:02:56]}  Rae8 {[%clk 0:02:44]} 16. Qg4 {[%clk 0:02:50]}  b5 {[%clk 0:02:31]} 17. Ne3 {[%clk 0:02:43]}  f5 {[%clk 0:01:44]} 18. Nxf5 {[%clk 0:02:40]}  Qd8 {[%clk 0:01:20]} 19. Qg3 {[%clk 0:02:28]}  exf4 {[%clk 0:01:10]} 20. Nh6# {[%clk 0:02:26]} 1-0


[Site "https://www.chess.com"]

[Event "Titled Tuesday Blitz February 21 Late 2023"]
[White "Arencibia Monduy, Antonio"]
[Black "Manu_ChessExcelsior"]
[WhiteFideId "3507939"]
[WhiteElo "2122"]
[BlackElo "2095"]
[Result "1-0"]
[Round "09"]
[TimeControl "180+2"]
[Date "2023.02.21"]
[WhiteClock "0:00:23"]
[BlackClock "0:00:02"]

1. e4 {[%clk 0:03:00]}  c5 {[%clk 0:02:56]} 2. Nf3 {[%clk 0:03:00]}  Nc6 {[%clk 0:02:56]} 3. c3 {[%clk 0:03:01]}  Nf6 {[%clk 0:02:53]} 4. e5 {[%clk 0:03:01]}  Nd5 {[%clk 0:02:51]} 5. d4 {[%clk 0:03:01]}  cxd4 {[%clk 0:02:52]} 6. cxd4 {[%clk 0:03:01]}  d6 {[%clk 0:02:42]} 7. Bc4 {[%clk 0:02:58]}  Nb6 {[%clk 0:02:34]} 8. Bb5 {[%clk 0:02:57]}  a6 {[%clk 0:02:27]} 9. Bxc6+ {[%clk 0:02:55]}  bxc6 {[%clk 0:02:26]} 10. O-O {[%clk 0:02:55]}  g6 {[%clk 0:01:45]} 11. Bf4 {[%clk 0:02:47]}  Bg7 {[%clk 0:01:42]} 12. exd6 {[%clk 0:02:45]}  exd6 {[%clk 0:01:40]} 13. Re1+ {[%clk 0:02:45]}  Be6 {[%clk 0:01:37]} 14. Ng5 {[%clk 0:02:33]}  Qd7 {[%clk 0:01:36]} 15. Nxe6 {[%clk 0:02:25]}  fxe6 {[%clk 0:01:37]} 16. Nc3 {[%clk 0:02:16]}  O-O {[%clk 0:01:28]} 17. Bg3 {[%clk 0:02:17]}  Rae8 {[%clk 0:01:25]} 18. Ne4 {[%clk 0:02:13]}  e5 {[%clk 0:00:40]} 19. dxe5 {[%clk 0:02:09]}  dxe5 {[%clk 0:00:20]} 20. Qc2 {[%clk 0:01:56]}  Nd5 {[%clk 0:00:17]} 21. Rad1 {[%clk 0:01:53]}  Qf5 {[%clk 0:00:16]} 22. Qxc6 {[%clk 0:01:48]}  Nf4 {[%clk 0:00:16]} 23. Qxa6 {[%clk 0:01:35]}  Re6 {[%clk 0:00:14]} 24. Qc4 {[%clk 0:01:32]}  Kh8 {[%clk 0:00:13]} 25. b4 {[%clk 0:01:15]}  Ree8 {[%clk 0:00:12]} 26. a4 {[%clk 0:01:09]}  Rc8 {[%clk 0:00:11]} 27. Nc5 {[%clk 0:01:07]}  h5 {[%clk 0:00:04]} 28. Qe4 {[%clk 0:00:59]}  Qg4 {[%clk 0:00:01]} 29. h3 {[%clk 0:00:38]}  Qg5 {[%clk 0:00:02]} 30. a5 {[%clk 0:00:31]}  h4 {[%clk 0:00:01]} 31. Bxf4 {[%clk 0:00:30]}  Rxf4 {[%clk 0:00:01]} 32. Qb7 {[%clk 0:00:27]}  Rd8 {[%clk 0:00:02]} 33. Rxd8+ {[%clk 0:00:25]}  Qxd8 {[%clk 0:00:02]} 34. Ne6 {[%clk 0:00:23]}  Qd2 {[%clk 0:00:02]} 35. Qxg7# {[%clk 0:00:23]} 1-0


[Site "https://www.chess.com"]

[Event "Titled Tuesday Blitz February 21 Late 2023"]
[White "Hirneise, Jens"]
[Black "Miszler, Levente"]
[WhiteFideId "24614734"]
[BlackFideId "763276"]
[WhiteElo "2277"]
[BlackElo "2271"]
[Result "1-0"]
[Round "09"]
[TimeControl "180+2"]
[Date "2023.02.21"]
[WhiteClock "0:00:28"]
[BlackClock "0:02:06"]

1. e4 {[%clk 0:01:46]}  e6 {[%clk 0:02:59]} 2. d4 {[%clk 0:01:43]}  d5 {[%clk 0:02:59]} 3. e5 {[%clk 0:01:43]}  f6 {[%clk 0:02:57]} 4. exf6 {[%clk 0:01:35]}  Nxf6 {[%clk 0:02:58]} 5. Nf3 {[%clk 0:01:31]}  Bd6 {[%clk 0:02:58]} 6. Bd3 {[%clk 0:01:28]}  O-O {[%clk 0:02:59]} 7. O-O {[%clk 0:01:28]}  c5 {[%clk 0:02:59]} 8. c3 {[%clk 0:01:26]}  Nc6 {[%clk 0:02:59]} 9. Re1 {[%clk 0:01:26]}  Qc7 {[%clk 0:02:52]} 10. Bg5 {[%clk 0:01:17]}  Ng4 {[%clk 0:02:43]} 11. h3 {[%clk 0:01:09]}  Bh2+ {[%clk 0:02:41]} 12. Kf1 {[%clk 0:01:05]}  Nxf2 {[%clk 0:02:40]} 13. Kxf2 {[%clk 0:00:58]}  Qg3+ {[%clk 0:02:38]} 14. Kf1 {[%clk 0:00:56]}  Qxg5 {[%clk 0:02:38]} 15. Re2 {[%clk 0:00:47]}  e5 {[%clk 0:02:22]} 16. Rf2 {[%clk 0:00:40]}  Qg3 {[%clk 0:02:21]} 17. dxe5 {[%clk 0:00:38]}  Nxe5 {[%clk 0:02:19]} 18. Be2 {[%clk 0:00:37]}  Bxh3 {[%clk 0:02:10]} 19. gxh3 {[%clk 0:00:31]}  Qg1+ {[%clk 0:02:09]} 20. Nxg1 {[%clk 0:00:30]}  Bg3 {[%clk 0:02:06]} 21. Rxf8+ {[%clk 0:00:28]}  Rxf8+ {[%clk 0:02:07]} 22. Kg2 {[%clk 0:00:28]}  Bh4 {[%clk 0:02:06]} 23. Qxd5+ {[%clk 0:00:28]} 1-0


[Site "https://www.chess.com"]

[Event "Titled Tuesday Blitz February 21 Late 2023"]
[White "Kovalevsky, Stanislav"]
[Black "Deng, Henry"]
[WhiteFideId "13508598"]
[BlackFideId "30965454"]
[WhiteElo "2237"]
[BlackElo "2168"]
[Result "1-0"]
[Round "09"]
[TimeControl "180+2"]
[Date "2023.02.21"]
[WhiteClock "0:01:25"]
[BlackClock "0:01:44"]

1. c4 {[%clk 0:02:53]}  c6 {[%clk 0:02:59]} 2. Nc3 {[%clk 0:02:54]}  d5 {[%clk 0:02:59]} 3. cxd5 {[%clk 0:02:55]}  cxd5 {[%clk 0:03:00]} 4. d4 {[%clk 0:02:55]}  Nf6 {[%clk 0:03:00]} 5. g3 {[%clk 0:02:56]}  Bf5 {[%clk 0:02:58]} 6. Bg2 {[%clk 0:02:56]}  e6 {[%clk 0:02:59]} 7. Nf3 {[%clk 0:02:57]}  Nc6 {[%clk 0:02:59]} 8. O-O {[%clk 0:02:57]}  Bb4 {[%clk 0:02:59]} 9. Ne5 {[%clk 0:02:56]}  Nxe5 {[%clk 0:02:58]} 10. dxe5 {[%clk 0:02:57]}  Nd7 {[%clk 0:02:58]} 11. e4 {[%clk 0:02:52]}  Bxc3 {[%clk 0:02:55]} 12. exf5 {[%clk 0:02:51]}  Bxe5 {[%clk 0:02:55]} 13. fxe6 {[%clk 0:02:51]}  fxe6 {[%clk 0:02:55]} 14. Qh5+ {[%clk 0:02:48]}  g6 {[%clk 0:02:54]} 15. Qh6 {[%clk 0:02:48]}  Qe7 {[%clk 0:02:52]} 16. Re1 {[%clk 0:02:36]}  O-O-O {[%clk 0:02:42]} 17. Bg5 {[%clk 0:02:29]}  Bf6 {[%clk 0:02:42]} 18. Bf4 {[%clk 0:02:02]}  Bxb2 {[%clk 0:02:31]} 19. Rab1 {[%clk 0:01:44]}  Qa3 {[%clk 0:02:21]} 20. Rxe6 {[%clk 0:01:37]}  Qxa2 {[%clk 0:02:17]} 21. Rbe1 {[%clk 0:01:33]}  Nb6 {[%clk 0:01:49]} 22. Qh3 {[%clk 0:01:28]}  Rd7 {[%clk 0:01:48]} 23. Re8+ {[%clk 0:01:24]}  Rxe8 {[%clk 0:01:44]} 24. Rxe8# {[%clk 0:01:25]} 1-0


[Site "https://www.chess.com"]

[Event "Titled Tuesday Blitz February 21 Late 2023"]
[White "Przybylski, Wojciech"]
[Black "Gatterer, Florian"]
[WhiteFideId "1117599"]
[BlackFideId "811688"]
[WhiteElo "2321"]
[BlackElo "2170"]
[Result "1-0"]
[Round "09"]
[TimeControl "180+2"]
[Date "2023.02.21"]
[WhiteClock "0:00:07"]
[BlackClock "0:00:10"]

1. e4 {[%clk 0:02:54]}  c6 {[%clk 0:02:59]} 2. d4 {[%clk 0:02:47]}  d5 {[%clk 0:02:59]} 3. e5 {[%clk 0:02:48]}  Bf5 {[%clk 0:02:59]} 4. c4 {[%clk 0:02:47]}  e6 {[%clk 0:02:58]} 5. Nc3 {[%clk 0:02:47]}  Ne7 {[%clk 0:02:57]} 6. a3 {[%clk 0:02:45]}  dxc4 {[%clk 0:02:55]} 7. Bxc4 {[%clk 0:02:43]}  Nd7 {[%clk 0:02:55]} 8. Nge2 {[%clk 0:02:42]}  Nb6 {[%clk 0:02:51]} 9. Ba2 {[%clk 0:02:39]}  Ned5 {[%clk 0:02:50]} 10. O-O {[%clk 0:02:38]}  Be7 {[%clk 0:02:49]} 11. Ng3 {[%clk 0:02:38]}  Bg6 {[%clk 0:02:48]} 12. Nce4 {[%clk 0:02:37]}  O-O {[%clk 0:02:43]} 13. Re1 {[%clk 0:02:36]}  a5 {[%clk 0:02:34]} 14. h3 {[%clk 0:02:33]}  a4 {[%clk 0:02:32]} 15. Bd2 {[%clk 0:02:30]}  Nd7 {[%clk 0:02:15]} 16. Rc1 {[%clk 0:02:27]}  Qb6 {[%clk 0:02:12]} 17. Qc2 {[%clk 0:02:16]}  Qxd4 {[%clk 0:01:59]} 18. Bc3 {[%clk 0:01:04]}  Nxc3 {[%clk 0:01:48]} 19. Qxc3 {[%clk 0:01:05]}  Qxc3 {[%clk 0:01:48]} 20. Nxc3 {[%clk 0:01:05]}  Nb6 {[%clk 0:01:45]} 21. Nge2 {[%clk 0:01:01]}  Rfd8 {[%clk 0:01:32]} 22. Red1 {[%clk 0:00:58]}  Nd5 {[%clk 0:01:24]} 23. Kf1 {[%clk 0:00:50]}  h6 {[%clk 0:01:12]} 24. g3 {[%clk 0:00:47]}  Bh5 {[%clk 0:01:06]} 25. g4 {[%clk 0:00:45]}  Bg6 {[%clk 0:01:04]} 26. f4 {[%clk 0:00:44]}  Ne3+ {[%clk 0:00:49]} 27. Kf2 {[%clk 0:00:44]}  Nxd1+ {[%clk 0:00:49]} 28. Nxd1 {[%clk 0:00:44]}  Bd3 {[%clk 0:00:40]} 29. Ng1 {[%clk 0:00:35]}  Bb5 {[%clk 0:00:37]} 30. Nf3 {[%clk 0:00:33]}  Rd7 {[%clk 0:00:32]} 31. Nc3 {[%clk 0:00:30]}  Bc5+ {[%clk 0:00:31]} 32. Kg3 {[%clk 0:00:29]}  Bb6 {[%clk 0:00:29]} 33. f5 {[%clk 0:00:23]}  exf5 {[%clk 0:00:24]} 34. gxf5 {[%clk 0:00:23]}  Kf8 {[%clk 0:00:24]} 35. e6 {[%clk 0:00:23]}  fxe6 {[%clk 0:00:24]} 36. fxe6 {[%clk 0:00:23]}  Rd3 {[%clk 0:00:21]} 37. Kg2 {[%clk 0:00:19]}  Ke7 {[%clk 0:00:18]} 38. Ne5 {[%clk 0:00:19]}  Rd2+ {[%clk 0:00:19]} 39. Kf3 {[%clk 0:00:18]}  Rf2+ {[%clk 0:00:18]} 40. Kg3 {[%clk 0:00:17]}  Rf6 {[%clk 0:00:17]} 41. Ng4 {[%clk 0:00:15]}  Bc7+ {[%clk 0:00:15]} 42. Kg2 {[%clk 0:00:14]}  Rxe6 {[%clk 0:00:15]} 43. Bxe6 {[%clk 0:00:13]}  Kxe6 {[%clk 0:00:16]} 44. Re1+ {[%clk 0:00:12]}  Kf7 {[%clk 0:00:16]} 45. Rf1+ {[%clk 0:00:11]}  Kg8 {[%clk 0:00:16]} 46. Re1 {[%clk 0:00:11]}  Rd8 {[%clk 0:00:16]} 47. Re7 {[%clk 0:00:11]}  Rd2+ {[%clk 0:00:15]} 48. Kf3 {[%clk 0:00:11]}  Bd8 {[%clk 0:00:12]} 49. Rxb7 {[%clk 0:00:09]}  Rxb2 {[%clk 0:00:12]} 50. Rd7 {[%clk 0:00:07]}  Bg5 {[%clk 0:00:10]} 51. Ne4 {[%clk 0:00:07]} 1-0


[Site "https://www.chess.com"]

[Event "Titled Tuesday Blitz February 21 Late 2023"]
[White "Rottenwohrer Suarez, Juan"]
[Black "Smith, Garrett L"]
[WhiteFideId "32068182"]
[BlackFideId "2024829"]
[WhiteElo "2265"]
[BlackElo "2047"]
[Result "0-1"]
[Round "09"]
[TimeControl "180+2"]
[Date "2023.02.21"]
[WhiteClock "0:00:02"]
[BlackClock "0:00:13"]

1. Nf3 {[%clk 0:03:00]}  c5 {[%clk 0:02:59]} 2. g3 {[%clk 0:03:01]}  Nc6 {[%clk 0:02:57]} 3. Bg2 {[%clk 0:03:01]}  e5 {[%clk 0:02:58]} 4. c4 {[%clk 0:03:01]}  d6 {[%clk 0:02:58]} 5. O-O {[%clk 0:03:02]}  Be6 {[%clk 0:02:57]} 6. d3 {[%clk 0:03:00]}  Nf6 {[%clk 0:02:57]} 7. Nc3 {[%clk 0:02:58]}  h6 {[%clk 0:02:57]} 8. a3 {[%clk 0:02:58]}  Be7 {[%clk 0:02:56]} 9. Rb1 {[%clk 0:02:51]}  a5 {[%clk 0:02:56]} 10. b3 {[%clk 0:02:48]}  d5 {[%clk 0:02:53]} 11. cxd5 {[%clk 0:02:23]}  Nxd5 {[%clk 0:02:54]} 12. Nxd5 {[%clk 0:02:23]}  Bxd5 {[%clk 0:02:38]} 13. Be3 {[%clk 0:02:23]}  O-O {[%clk 0:02:34]} 14. Qc2 {[%clk 0:02:05]}  Rc8 {[%clk 0:02:29]} 15. Qb2 {[%clk 0:01:44]}  Re8 {[%clk 0:02:11]} 16. Rfc1 {[%clk 0:01:28]}  Nd4 {[%clk 0:02:00]} 17. Bxd4 {[%clk 0:01:20]}  exd4 {[%clk 0:01:58]} 18. b4 {[%clk 0:01:17]}  cxb4 {[%clk 0:01:44]} 19. Rxc8 {[%clk 0:01:14]}  Qxc8 {[%clk 0:01:44]} 20. axb4 {[%clk 0:01:13]}  Bxb4 {[%clk 0:01:32]} 21. Qxd4 {[%clk 0:01:12]}  Ba2 {[%clk 0:01:13]} 22. Rf1 {[%clk 0:00:44]}  Rxe2 {[%clk 0:01:08]} 23. Ne5 {[%clk 0:00:25]}  Bc5 {[%clk 0:01:03]} 24. Qd7 {[%clk 0:00:21]}  Be6 {[%clk 0:00:50]} 25. Qxc8+ {[%clk 0:00:17]}  Bxc8 {[%clk 0:00:51]} 26. Nc4 {[%clk 0:00:13]}  a4 {[%clk 0:00:48]} 27. Bf3 {[%clk 0:00:13]}  Rc2 {[%clk 0:00:45]} 28. Bd1 {[%clk 0:00:08]}  Ra2 {[%clk 0:00:38]} 29. Ne5 {[%clk 0:00:07]}  Be6 {[%clk 0:00:29]} 30. Bf3 {[%clk 0:00:05]}  b5 {[%clk 0:00:27]} 31. Rb1 {[%clk 0:00:03]}  Bxf2+ {[%clk 0:00:19]} 32. Kh1 {[%clk 0:00:03]}  Bd4 {[%clk 0:00:19]} 33. Rxb5 {[%clk 0:00:03]}  Rb2 {[%clk 0:00:14]} 34. Ra5 {[%clk 0:00:02]}  Rb1+ {[%clk 0:00:13]} 35. Kg2 {[%clk 0:00:02]}  Bxe5 {[%clk 0:00:12]} 36. Rxe5 {[%clk 0:00:01]}  Rb2+ {[%clk 0:00:12]} 37. Kg1 {[%clk 0:00:01]}  a3 {[%clk 0:00:13]} 38. Rc5 {[%clk 0:00:01]}  a2 {[%clk 0:00:12]} 39. Ra5 {[%clk 0:00:02]}  Rb1+ {[%clk 0:00:12]} 40. Kg2 {[%clk 0:00:02]}  a1=Q {[%clk 0:00:12]} 41. Rxa1 {[%clk 0:00:02]}  Rxa1 {[%clk 0:00:13]} 42. Be4 {[%clk 0:00:02]}  Ra2+ {[%clk 0:00:13]} 0-1


[Site "https://www.chess.com"]

[Event "Titled Tuesday Blitz February 21 Late 2023"]
[White "Curtis, John"]
[Black "CheckBits"]
[WhiteFideId "3200256"]
[WhiteElo "2292"]
[BlackElo "2452"]
[Result "1/2-1/2"]
[Round "09"]
[TimeControl "180+2"]
[Date "2023.02.21"]
[WhiteClock "0:00:55"]
[BlackClock "0:00:07"]

1. d4 {[%clk 0:03:00]}  Nf6 {[%clk 0:02:55]} 2. Bg5 {[%clk 0:02:55]}  Ne4 {[%clk 0:02:52]} 3. Bf4 {[%clk 0:02:55]}  d5 {[%clk 0:02:52]} 4. Nd2 {[%clk 0:02:55]}  Bf5 {[%clk 0:02:51]} 5. Nxe4 {[%clk 0:02:53]}  Bxe4 {[%clk 0:02:51]} 6. Qd2 {[%clk 0:02:51]}  e6 {[%clk 0:02:48]} 7. e3 {[%clk 0:02:50]}  c5 {[%clk 0:02:47]} 8. c3 {[%clk 0:02:45]}  Qb6 {[%clk 0:02:37]} 9. Bxb8 {[%clk 0:02:38]}  Rxb8 {[%clk 0:02:36]} 10. Nf3 {[%clk 0:02:37]}  Bd6 {[%clk 0:02:32]} 11. Be2 {[%clk 0:02:35]}  O-O {[%clk 0:02:30]} 12. O-O {[%clk 0:02:34]}  Rfc8 {[%clk 0:02:26]} 13. a3 {[%clk 0:02:26]}  c4 {[%clk 0:02:10]} 14. Ng5 {[%clk 0:02:25]}  Bg6 {[%clk 0:02:07]} 15. f4 {[%clk 0:02:20]}  Qd8 {[%clk 0:01:39]} 16. Nf3 {[%clk 0:02:13]}  b5 {[%clk 0:01:37]} 17. Ne5 {[%clk 0:02:12]}  a5 {[%clk 0:01:32]} 18. Nxg6 {[%clk 0:02:10]}  hxg6 {[%clk 0:01:32]} 19. Bf3 {[%clk 0:02:06]}  b4 {[%clk 0:01:31]} 20. axb4 {[%clk 0:02:03]}  axb4 {[%clk 0:01:31]} 21. e4 {[%clk 0:02:02]}  dxe4 {[%clk 0:01:07]} 22. Bxe4 {[%clk 0:02:02]}  bxc3 {[%clk 0:00:59]} 23. bxc3 {[%clk 0:02:01]}  Rb3 {[%clk 0:00:59]} 24. g3 {[%clk 0:01:50]}  Rcb8 {[%clk 0:00:57]} 25. Ra2 {[%clk 0:01:47]}  Qb6 {[%clk 0:00:55]} 26. Rc2 {[%clk 0:01:40]}  Qa5 {[%clk 0:00:52]} 27. Kg2 {[%clk 0:01:36]}  Be7 {[%clk 0:00:51]} 28. Rd1 {[%clk 0:01:33]}  Bf6 {[%clk 0:00:50]} 29. d5 {[%clk 0:01:24]}  Bxc3 {[%clk 0:00:41]} 30. Qe2 {[%clk 0:01:21]}  exd5 {[%clk 0:00:38]} 31. Rxd5 {[%clk 0:01:18]}  Qb4 {[%clk 0:00:16]} 32. Qd1 {[%clk 0:01:07]}  Rb2 {[%clk 0:00:15]} 33. Rd8+ {[%clk 0:01:06]}  Rxd8 {[%clk 0:00:14]} 34. Qxd8+ {[%clk 0:01:05]}  Kh7 {[%clk 0:00:15]} 35. Qd1 {[%clk 0:01:03]}  Rb1 {[%clk 0:00:11]} 36. Qh5+ {[%clk 0:00:58]}  Kg8 {[%clk 0:00:10]} 37. Qd5 {[%clk 0:00:55]}  Rb2 {[%clk 0:00:08]} 38. Qd8+ {[%clk 0:00:55]}  Kh7 {[%clk 0:00:08]} 39. Qh4+ {[%clk 0:00:54]}  Kg8 {[%clk 0:00:07]} 40. Qd8+ {[%clk 0:00:55]} 1/2-1/2


[Site "https://www.chess.com"]